Cogmind - Beta 13 @@@ ROGUE MODE // 2024.05.27 @ 01:55:19 Player: COGMINDER69 Result: Destroyed by G-47 Trooper with Particle Gun Performance ------------- Evolutions (0) 0 Regions Visited (2) 400 Robots Destroyed (25) 125 Value Destroyed (571) 571 Prototype IDs (0) 0 Alien Tech Used (0) 0 Bonus (0) 0 TOTAL SCORE: 1096 Bonus ------- None Cogmind --------- Core Integrity 0/250 Matter 298/300 Energy 125/125 System Corruption 0% Temperature Cool (36) Movement Walking (190) Ox1 Location -10/Mines Parts ------- > --- POWER (1) -------- Light Ion Engine > --- PROPULSION (2) --- Aluminum Leg Aluminum Leg > --- UTILITY (2) ------ Large Storage Unit Signal Interpreter > --- WEAPON (2) ------- Light Assault Rifle Light Assault Rifle > --- INVENTORY (15) --- Hover Unit Hover Unit Flight Unit Flight Unit Sensor Array Propulsion Shielding Hardened Light Armor Plating Hardened Light Armor Plating Hacking Suite EM Pulse Gun Datajack Datajack Peak State ------------ > --- POWER ------------ Light Ion Engine > --- PROPULSION ------- Light Treads Light Treads > --- UTILITY ---------- Medium Storage Unit Signal Interpreter > --- WEAPON ----------- Light Assault Rifle Light Assault Rifle > --- INVENTORY -------- Light Ion Engine Hover Unit Hover Unit Flight Unit Flight Unit Sensor Array Hacking Suite EM Pulse Gun Datajack [Rating: 8] Favorites ----------- Power Light Ion Engine Engine Light Ion Engine Propulsion Aluminum Leg Treads Light Treads Leg Aluminum Leg Utility Signal Interpreter Storage Large Storage Unit Processor Signal Interpreter Weapon Light Assault Rifle Energy Gun EM Pulse Gun Ballistic Gun Light Assault Rifle Ballistic Cannon Light Cannon Launcher Grenade Launcher Build | -11 -10 -10 ------- Run | Yrd Mat Min Slots Evolved . | . . . Power . | . . . Propulsion . | . . . Utility . | . . . Weapon . | . . . Parts Attached 26 | 6 20 . Power 8 | 1 7 . Engine 8 | 1 7 . Core . | . . . Reactor . | . . . Propulsion 5 | 2 3 . Treads 3 | 2 1 . Leg 2 | . 2 . Wheel . | . . . Hover . | . . . Flight . | . . . Utility 4 | 1 3 . Device . | . . . Storage 3 | 1 2 . Processor 1 | . 1 . Hackware . | . . . Protection . | . . . Artifact . | . . . Weapon 9 | 2 7 . Energy Gun 2 | 1 1 . Energy Cannon . | . . . Ballistic Gun 5 | 1 4 . Ballistic Cannon 1 | . 1 . Launcher 1 | . 1 . Special Weapon . | . . . Impact Weapon . | . . . Slashing Weapon . | . . . Piercing Weapon . | . . . Special Melee Weapon . | . . . Unidentified Prototypes . | . . . Parts Lost 5 | . 5 . Power 2 | . 2 . Propulsion 1 | . 1 . Utility . | . . . Weapon 2 | . 2 . Highest Loss Streak 3 | . 3 . To Critical Strikes . | . . . Average Slot Usage (%) 95 | . 93 100 Engine 13 | . 13 14 Treads 12 | . 17 . Leg 15 | . 10 28 Storage 14 | . 14 14 Processor 10 | . 8 14 Ballistic Gun 26 | . 25 28 Naked Turns . | . . . Heaviest Build 27 | 14 27 25 Greatest Support 40 | 40 40 20 Greatest Overweight (x) 2 | . 2 1 Average Overweight (x) . | . . 1 Largest Inventory Capacity 15 | 8 15 15 Average Capacity 12 | 6 11 15 Most Carried 13 | 1 13 12 Average Carried 9 | . 8 12 Final Capacity 15 | 8 15 15 Final Carried 12 | 1 12 12 Class Distribution -------------------- 50% | Mutant 49% | Scavenger-Mutant Dominant Class ---------------- Mutant | -10/Materials Scavenger-Mutant | -10/Mines Resources | -11 -10 -10 ----------- Run | Yrd Mat Min Matter Collected 692 | 236 436 20 Remotely . | . . . Salvage Created 710 | . 632 78 Parts 51 | . 46 5 Haulers Intercepted . | . . . Recyclers Shooed 1 | . 1 . Parts Field Recycled . | . . . Retrieved Matter . | . . . Parts Self-Destructed . | . . . Prevented . | . . . Kills | -11 -10 -10 ------- Run | Yrd Mat Min Combat Hostiles Destroyed 18 | . 16 2 Guns 14 | . 12 2 Cannons 3 | . 3 . AOE 1 | . 1 . Classes Destroyed 6 | . 6 . Worker 3 | . 3 . Recycler 1 | . 1 . Operator 1 | . 1 . Watcher 2 | . 2 . Swarmer 6 | . 6 . Grunt 12 | . 10 2 Best Kill Streak 4 | . 4 2 Combat Bots Only 3 | . 3 2 Max Kills in Single Turn 2 | . 2 1 Gunslinging 1 | . 1 . Exploded 1 | . 1 . Melee . | . . . Uniques/NPCs Destroyed . | . . . Combat | -11 -10 -10 -------- Run | Yrd Mat Min Hostile Shots Fired 124 | . 110 14 Missed 33 | . 31 2 Damage Taken 1125 | . 958 167 Core 254 | . 172 82 Absorbed by Shields . | . . . Regen/Repaired (Parts) 62 | . 62 . Core Remaining (%) 100 | 100 . . Volleys Fired 90 | . 79 11 Largest 2 | . 2 2 Hottest 60 | . 60 40 Shots Fired 160 | . 138 22 Gun 147 | . 125 22 Cannon 12 | . 12 . Launcher 1 | . 1 . Special . | . . . Kinetic 154 | . 132 22 Thermal . | . . . Explosive 1 | . 1 . Electromagnetic 5 | . 5 . Robot Hit Streak 13 | . 13 12 Robot Miss Streak 4 | . 4 1 Penetration Max . | . . . Secondary Targets 2 | . 2 . Max Gunslinging Chain 1 | . 1 . Shots Hit Robots 106 | . 90 16 Core Hits 48 | . 40 8 Critical Kills . | . . . Critical Parts Destroyed . | . . . Critical Strikes . | . . . Melee Attacks . | . . . Impact . | . . . Slashing . | . . . Piercing . | . . . Sneak Attacks . | . . . Combat Hostiles . | . . . Follow-up Attacks . | . . . Damage Inflicted 1297 | . 1167 130 Guns 912 | . 782 130 Cannons 161 | . 161 . Explosions 204 | . 204 . Melee . | . . . Ramming 20 | . 20 . Kinetic 1008 | . 878 130 Thermal 204 | . 204 . Explosive . | . . . Electromagnetic 65 | . 65 . Impact . | . . . Slashing . | . . . Piercing . | . . . Highest Corruption . | . . . Average Corruption . | . . . Corruption Purged . | . . . Corruption Blocked . | . . . Overload Shots . | . . . Overflow Damage 22 | . 22 . Projectiles 13 | . 13 . Explosions 9 | . 9 . Melee . | . . . Knockbacks . | . . . Impact . | . . . Kinetic . | . . . Secondary . | . . . Self-Inflicted Damage 63 | . 63 . Shots 2 | . 2 . Rammed 1 | . 1 . Targets Rammed 7 | . 7 . Kicked 6 | . 6 . Crushed . | . . . Highest Temperature 37 | . 37 18 Average Temperature 11 | . 11 9 Received Heat Transfer 564 | . 450 114 Siege Activations . | . . . Robots Corrupted . | . . . Combat Hostiles . | . . . Parts Fried . | . . . Impact Corruptions . | . . . Robots Melted . | . . . Combat Hostiles . | . . . Parts Melted . | . . . Heat Transferred 100 | . 100 . Parts Sabotaged . | . . . Parts Stolen . | . . . Parts Stripped . | . . . Power Chain Reactions . | . . . Alert | -11 -10 -10 ------- Run | Yrd Mat Min Peak Influence 320 | . 320 86 Initial 36 | . . 36 Average 113 | . 142 49 Maximum Alert Level 1 | . 1 . Low Security (%) 90 | 100 86 100 Level 1 9 | . 13 . Level 2 . | . . . Level 3 . | . . . Level 4 . | . . . Level 5 . | . . . High Security . | . . . Max Security . | . . . Squads Dispatched 4 | . 4 . Investigation 2 | . 2 . Extermination . | . . . Reinforcement 2 | . 2 . Assault . | . . . Garrison . | . . . Intercept . | . . . Searches Triggered . | . . . Construction Impeded . | . . . Haulers Reinforced . | . . . Active Scanning Responses . | . . . Cargo Convoy Interrupts . | . . . Stealth | -11 -10 -10 --------- Run | Yrd Mat Min Distress Signals 1 | . 1 . Communications Jammed . | . . . Distress Signals . | . . . Times Spotted 29 | . 25 4 Peak Tracking Total 4 | . 4 2 Tactical Retreats 2 | . 2 . Traps | -11 -10 -10 ------- Run | Yrd Mat Min Traps Triggered 1 | . 1 . Indirectly . | . . . Trap Hack Attempts . | . . . Triggered . | . . . Disarmed . | . . . Reprogrammed . | . . . Reused . | . . . Traps Extracted . | . . . Installed . | . . . Triggered . | . . . Machines | -11 -10 -10 ---------- Run | Yrd Mat Min Machines Disabled 2 | . 2 . Max in Single Turn 2 | . 2 . Machines Repaired . | . . . Machines Dismantled . | . . . Machines Sabotaged . | . . . Overloaded Fab Kills . | . . . Hacking | -11 -10 -10 --------- Run | Yrd Mat Min Machines Accessed 5 | . 5 . Terminals 4 | . 4 . Fabricators . | . . . Repair Stations 1 | . 1 . Recycling Units . | . . . Scanalyzers . | . . . Garrison Access . | . . . Total Hacks 14 | . 14 . Successful 12 | . 12 . Failed 2 | . 2 . Catastrophic . | . . . Database Lockouts . | . . . Manual . | . . . Terminals 9 | . 9 . Fabricators . | . . . Repair Stations 5 | . 5 . Recycling Units . | . . . Scanalyzers . | . . . Garrison Access . | . . . Terminal Hacks 8 | . 8 . Record 2 | . 2 . Alert Level 1 | . 1 . Locate Traps 1 | . 1 . Recall Investigation 1 | . 1 . Hauler Manifests 2 | . 2 . Zone Layout 1 | . 1 . Fabricator Hacks . | . . . Repair Station Hacks 4 | . 4 . Scan Component 2 | . 2 . Repair 2 | . 2 . Recycling Unit Hacks . | . . . Scanalyzer . | . . . Garrison Access Hacks . | . . . Unauthorized Hacks . | . . . Terminals . | . . . Fabricators . | . . . Repair Stations . | . . . Recycling Units . | . . . Scanalyzers . | . . . Garrison Access . | . . . Data Cores Recovered . | . . . Used . | . . . Hacking Detections 4 | . 4 . Full Trace Events 2 | . 2 . Feedback Events . | . . . Feedback Blocked . | . . . Robot Schematics Acquired . | . . . Robots Built . | . . . Authchips . | . . . Time . | . . . Total Robot Build Rating . | . . . Part Schematics Acquired . | . . . Parts Built . | . . . Authchips . | . . . Time . | . . . Total Part Build Rating . | . . . Parts Repaired 2 | . 2 . Time 52 | . 52 . Parts Recycled . | . . . Recycled Matter . | . . . Retrieved Matter . | . . . Retrieved Components . | . . . Parts Scanalyzed . | . . . Part Schematics Acquired . | . . . Parts Damaged . | . . . Bothacking | -11 -10 -10 ------------ Run | Yrd Mat Min Used RIF Installer . | . . . Robots Hacked . | . . . Non-combat . | . . . Combat . | . . . Robot Hacks Applied . | . . . Relay Couplers Released . | . . . Fabnet Peak Effective % . | . . . Robots Rewired . | . . . Allies Hacked . | . . . Hacks Repelled . | . . . Allies | -11 -10 -10 -------- Run | Yrd Mat Min Total Allies . | . . . Largest Group . | . . . Highest-Rated Group . | . . . Highest-Rated Ally . | . . . Total Orders . | . . . Ally Attacks . | . . . Total Damage . | . . . Kills . | . . . Allies Corrupted . | . . . Allies Melted . | . . . Intel | -11 -10 -10 ------- Run | Yrd Mat Min Robot Analysis Total . | . . . Derelict Logs Recovered 1 | . . 1 Drone Launches . | . . . Drone Recoveries . | . . . Exploration | -11 -10 -10 ------------- Run | Yrd Mat Min Turns Passed 2233 | 89 1583 561 Spaces Moved 1058 | 53 728 277 Core 4 | 4 . . Treads 511 | 49 462 . Legs 543 | . 266 277 Wheels . | . . . Hover . | . . . Flight . | . . . Fastest Speed 50 | 50 160 190 Average Speed 175 | 151 171 190 Slowest Speed 260 | 160 260 190 Overloaded Moves . | . . . Propulsion Burnouts . | . . . Robots Hopped . | . . . Cave-ins Triggered . | . . . Exploration Rate (%) 50 | 4 76 72 Regions Visited 2 Branch Regions 1 Pre-discovered Areas 1 | . . 1 Known Exits Taken 1 | . 1 . Unknown Exits Taken 1 | 1 . . Scrap Searched 1 | . . 1 Spaces Dug . | . . . Terrain Destroyed 59 | . 59 . Melee . | . . . Projectile . | . . . AOE 59 | . 59 . Terrain Rammed . | . . . Walls Destroyed . | . . . Machines Disabled . | . . . Actions | -11 -10 -10 --------- Run | Yrd Mat Min Total 1288 | 59 935 294 Wait 73 | . 67 6 Move 1056 | 52 727 277 Hop . | . . . Pick Up 21 | 1 20 . Fast Attach 15 | 6 9 . Attach 4 | . 4 . Detach 2 | . 2 . Swap 7 | . 7 . Drop 13 | . 13 . Fire 90 | . 79 11 Melee . | . . . Ram . | . . . Kick 6 | . 6 . Crush 1 | . 1 . Escape Stasis . | . . . Rewire . | . . . Trap . | . . . Miscellaneous . | . . . Route ------- -11/Scrapyard -10/Materials (discovered 4 exits: *Mat x2 / *Min / *Sub) -10/Mines (discovered 1 exit: *Mat) History --------- Turn | Location | Event 5 | -11/Scrapyard | Discovered new exit (range 15) 90 | -11/Scrapyard | Entered Materials 257 | -10/Materials | Discovered new exit (range 16) 314 | -10/Materials | Build established: Mutant 522 | -10/Materials | Lost 3 parts (2p1w) 645 | -10/Materials | Discovered new exit (range 16) 721 | -10/Materials | Discovered new exit (range 17) 879 | -10/Materials | Identified exit to Materials 1053 | -10/Materials | Core integrity fell below 50% 1183 | -10/Materials | Identified exit to Mines 1332 | -10/Materials | Repaired Lgt. Ion Engine 1360 | -10/Materials | Repaired Lgt. Assault Rifle 1461 | -10/Materials | Discovered new exit (range 12) 1480 | -10/Materials | Identified exit to Subcaves 1666 | -10/Materials | Build established: Scavenger-Mutant 1673 | -10/Materials | Entered Mines 1740 | -10/Mines | Discovered exit to Materials (range 8) 1797 | -10/Mines | Core integrity fell below 20% 2041 | -10/Mines | Found a hidden stash of uninstalled traps 2234 | -10/Mines | Destroyed by G-47 Trooper with Particle Gun Last Messages --------------- Acquired 20 matter. R-06 Scavenger collects Lgt. Nuclear Core. R-06 Scavenger collects Heat Sink. An audio recording is triggered: "If you're looking for Megawrench, sorry but we're not in our cave right now, after essentially being evicted by all these Unaware tunnelers." "Blame H1-IDC, who apparently didn't care about the consequences of repeatedly making a mess in Materials. Shooting at robots and generally destroying stuff raised the alert level high enough to trigger assault squads over in the main complex, and they later decided the best way to defend their interests would be to start expanding in this direction." Acquired derelict log, extracted data. World map updated: -10/Materials. A stash of uninstalled traps is collected here! T-07 Excavator is excavating. Critical hit (Burn: +37). Map ----- +----------------------------------------------------+ | ????## #?????????????# ??## ##???? | | ???# #??????????????# ??# ##??? | | ### ##?????????????# #?# ##?? | | #?????????????# ### ##? | | #?????????????# ## #? | | ###### #??????????????# ## #? | | #????????????????????????# ### ##? | | %#????????????????????????# #?## ##?? | | %#???????????????????????## #### ###??? | | #?????????###???######### ## ##????? | | ##?????????? ?## #?????? | | ?????????????# ## ##?????? | | ?????????????# #??????? | | ?????????????# #??????? | | ?????????????#### ### #??????? | | ??????????????## ##?## ##??????? | | ?????????????## ##???#######???????? | | ????????????## ####??????????????????? | | ???????????## ##?????????????????????? | | ??????????## #??????????????????????? | | ??????????# ##?????????????????????? | | ??????????# #####?????????????????? | | ??????????## #?????????????????? | | ???????????## ## #??????????? #???? | | ????????????## ## #####????? #???? | | ????????????## @#???"" #???? | | ???????????## gg## #???? | | ???????????# ####### """ ????? | | ???????????# ##?????#### """ ????? | | ???????????## #???????????""" ?????? | | ????????????## ##???????????? ??????? | | ?????????????####??????????????? ??????? | | ?????????????????????????????????#??????? | | ????????????????????????????????????????? | | ????????????????????????????????????????? | | | | | | | | | | | | | | | | | | | | | | | | | | | | | | | +----------------------------------------------------+ Best States ------------- Heat Dissipation 25 Energy Generation 10 Energy Capacity 250 Matter Stores 300 Matter Capacity 300 Sight Range 16 Terrain Scan Density 10 Evasion (%) 40 Recoil Reduction 2 Item Schematics ----------------- None Robot Schematics ------------------ None Fabricated ------------ Nothing Alien Tech Used ----------------- None Achievements -------------- None Challenges ------------ None Game ------ Seed AnalysisMyomerDrive Manual? 0 Play Time 00:20:58 Cumulative 5.3 hours Start 2024.05.26 @ 23:51:16 End 2024.05.27 @ 01:55:19 Sessions 1 Manual Loads 0 Difficulty Rogue Special Mode None Game No. 8 Rogue 8 Adventurer 0 Explorer 0 Win Type - Total 0 Types 0/0/0/0/0/0/0/0/0 Lore% 9 Gallery% 7 Achievement% 10 Wizard Run 0 Options --------- Layout 1 ASCII 0 Keyboard 0 Movement Mouse Keybinds 0 Fullscreen 2 Font 32/Cog Map View 50x35 Zoom Use 0% Tactical HUD 0 Map Filters NONE Filters NONE Steam 1 RUN: 4ad70056-9764-4014-b1b8-5a04f0140318